fUSD/lending_fUSD_20240104
["ID","MTS","AMOUNT","RATE_DAILY","PERIOD"]
[310136900,1704382243175,-574.16,0.00032876,2]
[310136901,1704382243184,-500.0,0.00032876,2]
[310136902,1704382243194,-500.0,0.00032876,2]
[310136903,1704382243203,-500.0,0.00032876,2]
[310136904,1704382243213,-500.0,0.00032876,2]
[310136905,1704382243222,-617.62,0.00032876,2]
[310136906,1704382243232,-746.69,0.00032876,2]
[310136907,1704382243241,-500.0,0.00032876,2]
[310136908,1704382243250,-500.0,0.00032876,2]
[310136909,1704382243260,-542.04,0.00032876,2]
[310136910,1704382243269,-500.0,0.00032876,2]
[310136911,1704382243279,-500.0,0.00032876,2]
[310136912,1704382243289,-500.0,0.00032876,2]
[310136913,1704382243299,-500.0,0.00032876,2]
[310136914,1704382243309,-500.0,0.00032876,2]
[310136915,1704382243319,-979.72,0.00032876,2]
[310136916,1704382243329,-623.57,0.00032876,2]
[310136917,1704382243338,-500.0,0.00032876,2]
[310136918,1704382243348,-500.0,0.00032876,2]
[310136919,1704382243358,-500.0,0.00032876,2]
[310136920,1704382243367,-1373.36,0.00032876,2]
[310136921,1704382243377,-749.65,0.00032876,2]
[310136922,1704382243386,-791.37,0.00032876,2]
[310136923,1704382243395,-202.76614175,0.00032876,2]
[310136924,1704382243407,-749.29,0.00032876,2]
[310136925,1704382243417,-500.0,0.00032876,2]
[310136926,1704382243426,-250.7444387,0.00032876,2]
[310136927,1704382243435,-1152.47,0.00032876,2]
[310136928,1704382243444,-500.0,0.00032876,2]
[310136929,1704382243454,-1052.59,0.00032876,2]
[310136930,1704382243463,-500.0,0.00032876,2]
[310136931,1704382243473,-610.85,0.00032876,2]
[310136932,1704382243482,-500.0,0.00032876,5]
[310136933,1704382243492,-500.0,0.00032876,2]
[310136934,1704382243501,-500.0,0.00032876,2]
[310136935,1704382243510,-500.0,0.00032876,2]
[310136936,1704382243519,-500.0,0.00032876,2]
[310136937,1704382243529,-500.0,0.00032876,2]
[310136938,1704382243538,-500.0,0.00032876,2]
[310136939,1704382243548,-500.0,0.00032876,2]
[310136940,1704382243558,-500.0,0.00032876,2]
[310136941,1704382243567,-929.72,0.00032876,2]
[310136942,1704382243577,-500.0,0.00032876,2]
[310136943,1704382243586,-883.66,0.00032876,2]
[310136944,1704382243596,-965.13,0.00032876,2]
[310136945,1704382243606,-994.63,0.00032876,2]
[310136946,1704382243616,-500.0,0.00032876,2]
[310136947,1704382243626,-500.0,0.00032876,2]
[310136948,1704382243636,-500.0,0.00032876,2]
[310136949,1704382243646,-500.0,0.00032876,2]
[310136950,1704382243657,-500.0,0.00032876,2]
[310136951,1704382243667,-500.0,0.00032876,2]
[310136952,1704382243677,-500.0,0.00032876,2]
[310136953,1704382243687,-500.0,0.00032876,2]
[310136954,1704382243696,-1726.76,0.00032876,2]
[310136955,1704382243707,-500.0,0.00032876,2]
[310136956,1704382243716,-628.5,0.00032876,2]
[310136957,1704382243726,-500.0,0.00032876,2]
[310136958,1704382243735,-500.0,0.00032876,2]
[310136959,1704382243745,-592.9,0.00032876,2]
[310136960,1704382243754,-687.49,0.00032876,2]
[310136961,1704382243763,-1527.49,0.00032876,2]
[310136962,1704382243773,-500.0,0.00032876,2]
[310136963,1704382243783,-408.89842334,0.00032876,2]
[310136964,1704382243792,-1133.39,0.00032876,2]
[310136965,1704382243801,-500.0,0.00032876,2]
[310136966,1704382243811,-554.52,0.00032876,2]
[310136967,1704382243820,-875.83,0.00032876,2]
[310136968,1704382243829,-500.0,0.00032876,2]
[310136969,1704382243838,-500.0,0.00032876,2]
[310136970,1704382243847,-500.0,0.00032876,2]
[310136971,1704382243857,-569.21,0.00032876,2]
[310136972,1704382243867,-1481.3,0.00032876,2]
[310136973,1704382243877,-500.0,0.00032876,2]
[310136974,1704382243886,-500.0,0.00032876,2]
[310136975,1704382243895,-500.0,0.00032876,2]
[310136976,1704382243906,-500.0,0.00032876,2]
[310136977,1704382243915,-467.90767285,0.00032876,2]
[310136978,1704382243925,-500.0,0.00032876,2]
[310136979,1704382243934,-500.0,0.00032876,2]
[310136980,1704382243943,-500.0,0.00032876,2]
[310136981,1704382243953,-500.0,0.00032876,2]
[310136982,1704382243962,-537.95,0.00032876,2]
[310136983,1704382243971,-500.0,0.00032876,2]
[310136984,1704382243980,-500.0,0.00032876,2]
[310136985,1704382243989,-500.0,0.00032876,2]
[310136986,1704382243998,-500.0,0.00032876,2]
[310136987,1704382244008,-1165.76,0.00032876,2]
[310136988,1704382244017,-697.47,0.00032876,2]
[310136989,1704382244027,-500.0,0.00032876,2]
[310136990,1704382244036,-500.0,0.00032876,2]
[310136991,1704382244045,-647.93,0.00032876,2]
[310136992,1704382244055,-500.0,0.00032876,2]
[310136993,1704382244064,-500.0,0.00032876,2]
[310136994,1704382244074,-500.0,0.00032876,2]
[310136995,1704382244083,-500.0,0.00032876,2]
[310136996,1704382244092,-500.0,0.00032876,2]
[310136997,1704382244101,-500.0,0.00032876,2]
[310136998,1704382244110,-500.0,0.00032876,2]
[310136999,1704382244119,-383.78256344,0.00032876,2]
[310137000,1704382244129,-500.0,0.00032876,2]
[310137001,1704382244139,-633.29,0.00032876,2]
[310137002,1704382244148,-500.0,0.00032876,2]
[310137003,1704382244158,-577.5,0.00032876,2]
[310137004,1704382244168,-500.0,0.00032876,2]
[310137005,1704382244178,-754.99,0.00032876,2]
[310137006,1704382244187,-500.0,0.00032876,2]
[310137007,1704382244197,-500.0,0.00032876,2]
[310137008,1704382244206,-500.0,0.00032876,2]
[310137009,1704382244216,-500.0,0.00032876,2]
[310137010,1704382244226,-500.0,0.00032876,2]
[310137011,1704382244235,-217.27997372,0.00032876,2]
[310137012,1704382244245,-1015.01,0.00032876,2]
[310137013,1704382244254,-500.0,0.00032876,2]
[310137014,1704382244263,-516.74,0.00032876,2]
[310137015,1704382244273,-500.0,0.00032876,2]
[310137016,1704382244282,-562.47,0.00032876,2]
[310137017,1704382244296,-500.0,0.00032876,2]
[310137018,1704382244305,-4535.93,0.00032876,2]
[310137019,1704382244315,-500.0,0.00032876,2]
[310137020,1704382244324,-433.68143677,0.00032876,2]
[310137021,1704382244335,-500.0,0.00032876,2]
[310137022,1704382244344,-500.0,0.00032876,2]
[310137023,1704382244354,-762.88,0.00032876,2]
[310137024,1704382244364,-500.0,0.00032876,2]
[310137025,1704382244375,-539.86,0.00032876,2]
[310137026,1704382244385,-500.0,0.00032876,2]
[310137027,1704382244394,-519.67,0.00032876,2]
[310137028,1704382244407,-724.5,0.00032876,2]
[310137029,1704382244417,-500.0,0.00032876,2]
[310137030,1704382244426,-1690.95,0.00032876,2]
[310137031,1704382244435,-500.0,0.00032876,2]
[310137032,1704382244445,-631.03,0.00032876,2]
[310137033,1704382244454,-618.43,0.00032876,2]
[310137034,1704382244464,-500.0,0.00032876,2]
[310137035,1704382244474,-500.0,0.00032876,2]
[310137036,1704382244483,-321.04138973,0.00032876,2]
[310137037,1704382244493,-500.0,0.00032876,2]
[310137038,1704382244502,-830.76,0.00032876,2]
[310137039,1704382244511,-620.12,0.00032876,2]
[310137040,1704382244520,-352.45097936,0.00032876,2]
[310137041,1704382244529,-500.0,0.00032876,2]
[310137042,1704382244538,-500.0,0.00032876,2]
[310137043,1704382244547,-500.0,0.00032876,2]
[310137044,1704382244557,-1847.57,0.00032876,2]
[310137045,1704382244566,-1480.66,0.00032876,2]
[310137046,1704382244576,-500.0,0.00032876,2]
[310137047,1704382244585,-874.34,0.00032876,2]
[310137048,1704382244596,-500.0,0.00032876,2]
[310137049,1704382244606,-732.38,0.00032876,2]
[310137050,1704382244616,-500.0,0.00032876,2]
[310137051,1704382244625,-1503.08,0.00032876,2]
[310137052,1704382244635,-500.0,0.00032876,2]
[310137053,1704382244644,-500.0,0.00032876,2]
[310137054,1704382244655,-500.0,0.00032876,2]
[310137055,1704382244664,-3879.84,0.00032876,2]
[310137056,1704382244674,-500.0,0.00032876,2]
[310137057,1704382244683,-500.0,0.00032876,2]
[310137058,1704382244693,-500.0,0.00032876,2]
[310137059,1704382244702,-500.0,0.00032876,2]
[310137060,1704382244712,-885.0,0.00032876,2]
[310137061,1704382244721,-555.56,0.00032876,2]
[310137062,1704382244731,-585.2,0.00032876,2]
[310137063,1704382244741,-1630.34,0.00032876,2]
[310137064,1704382244750,-500.0,0.00032876,2]
[310137065,1704382244759,-500.0,0.00032876,2]
[310137066,1704382244769,-520.84,0.00032876,2]
[310137067,1704382244778,-1323.63,0.00032876,2]
[310137068,1704382244788,-500.0,0.00032876,2]
[310137069,1704382244797,-500.0,0.00032876,2]
[310137070,1704382244807,-1210.22,0.00032876,2]
[310137071,1704382244817,-500.0,0.00032876,2]
[310137072,1704382244827,-1388.49,0.00032876,2]
[310137073,1704382244837,-500.0,0.00032876,2]
[310137074,1704382244846,-500.0,0.00032876,2]
[310137075,1704382244856,-606.59,0.00032876,2]
[310137076,1704382244866,-860.24,0.00032876,2]
[310137077,1704382244876,-839.12,0.00032876,2]
[310137078,1704382244886,-1370.12,0.00032876,2]
[310137079,1704382244896,-500.0,0.00032876,2]
[310137080,1704382244912,-500.0,0.00032876,2]
[310137081,1704382244922,-500.0,0.00032876,2]
[310137082,1704382244931,-611.85,0.00032876,2]
[310137083,1704382244941,-500.0,0.00032876,2]
[310137084,1704382244950,-160.2059779,0.00032876,2]
[310137085,1704382244959,-500.0,0.00032876,2]
[310137086,1704382244969,-500.0,0.00032876,2]
[310137087,1704382244982,-500.0,0.00032876,2]
[310137088,1704382244992,-500.0,0.00032876,2]
[310137089,1704382245002,-500.0,0.00032876,2]
[310137090,1704382245012,-500.0,0.00032876,2]
[310137091,1704382245021,-500.0,0.00032876,2]
[310137092,1704382245030,-500.0,0.00032876,2]
[310137093,1704382245040,-500.0,0.00032876,2]
[310137094,1704382245050,-699.06,0.00032876,2]
[310137095,1704382245059,-500.0,0.00032876,2]
[310137096,1704382245068,-1034.6,0.00032876,2]
[310137097,1704382245079,-711.37,0.00032876,2]
[310137098,1704382245088,-500.0,0.00032876,2]
[310137099,1704382245098,-578.46,0.00032876,2]
[310137100,1704382245107,-500.0,0.00032876,2]
[310137101,1704382245116,-713.02,0.00032876,2]
[310137102,1704382245125,-500.0,0.00032876,2]
[310137103,1704382245134,-500.0,0.00032876,2]
[310137104,1704382245143,-500.0,0.00032876,2]
[310137105,1704382245154,-425.52188542,0.00032876,2]
[310137106,1704382245163,-500.0,0.00032876,2]
[310137107,1704382245172,-706.69,0.00032876,2]
[310137108,1704382245182,-500.0,0.00032876,2]
[310137109,1704382245191,-672.72,0.00032876,2]
[310137110,1704382245201,-1436.32,0.00032876,2]
[310137111,1704382245210,-705.58,0.00032876,2]
[310137112,1704382245219,-1790.4,0.00032876,2]
[310137113,1704382245228,-500.0,0.00032876,2]
[310137114,1704382245237,-1244.42,0.00032876,2]
[310137115,1704382245246,-782.15,0.00032876,2]
[310137116,1704382245256,-500.0,0.00032876,2]
[310137117,1704382245265,-500.0,0.00032876,2]
[310137118,1704382245275,-500.0,0.00032876,2]
[310137119,1704382245285,-1157.16,0.00032876,2]
[310137120,1704382245295,-500.0,0.00032876,2]
[310137121,1704382245305,-500.0,0.00032876,2]
[310137122,1704382245316,-500.0,0.00032876,2]
[310137123,1704382245326,-500.0,0.00032876,2]
[310137124,1704382245335,-500.0,0.00032876,2]
[310137125,1704382245344,-757.58,0.00032876,2]
[310137126,1704382245354,-500.0,0.00032876,2]
[310137127,1704382245363,-500.0,0.00032876,2]
[310137128,1704382245373,-500.0,0.00032876,2]
[310137129,1704382245382,-500.0,0.00032876,2]
[310137130,1704382245392,-537.43421087,0.00032876,2]
[310137131,1704382245402,-500.0,0.00032876,2]
[310137132,1704382245411,-500.0,0.00032876,2]
[310137133,1704382245421,-516.05,0.00032876,2]
[310137134,1704382245430,-500.0,0.00032876,2]
[310137136,1704382245439,-606.27,0.00032876,2]
[310137137,1704382245449,-500.0,0.00032876,2]
[310137139,1704382245458,-500.0,0.00032876,2]
[310137141,1704382245467,-500.0,0.00032876,2]
[310137143,1704382245476,-691.06,0.00032876,2]
[310137144,1704382245485,-500.0,0.00032876,2]
[310137145,1704382245494,-1431.84,0.00032876,2]
[310137146,1704382245503,-555.05,0.00032876,2]
[310137148,1704382245512,-500.0,0.00032876,2]
[310137149,1704382245522,-522.24213691,0.00032876,2]
[310137150,1704382245530,-554.8,0.00032876,2]
[310137151,1704382245539,-565.12855599,0.00032876,2]
[310137152,1704382245548,-466.97066016,0.00032876,2]
[310137153,1704382245557,-500.0,0.00032876,2]
[310137154,1704382245566,-748.8,0.00032876,2]
[310137155,1704382245577,-500.0,0.00032876,2]
[310137156,1704382245586,-609.34133045,0.00032876,2]
[310137157,1704382245595,-570.72,0.00032876,2]
[310137158,1704382245605,-457.29832742,0.00032876,2]
[310137160,1704382245615,-873.94,0.00032876,2]
[310137162,1704382245625,-500.0,0.00032876,2]
[310137164,1704382245634,-500.0,0.00032876,2]
[310137165,1704382245644,-500.0,0.00032876,2]
[310137166,1704382245656,-500.0,0.00032876,2]
[310137167,1704382245666,-707.41,0.00032876,2]
[310137168,1704382245675,-500.0,0.00032876,2]
[310137169,1704382245685,-2418.62,0.00032876,2]
[310137170,1704382245695,-556.91642571,0.00032876,2]
[310137171,1704382245705,-500.0,0.00032876,2]
[310137172,1704382245714,-500.0,0.00032876,2]
[310137173,1704382245725,-724.39,0.00032876,2]
[310137174,1704382245734,-426.13234197,0.00032876,2]
[310137175,1704382245744,-589.67,0.00032876,2]
[310137176,1704382245753,-632.37014396,0.00032876,2]
[310137177,1704382245763,-500.0,0.00032876,2]
[310137178,1704382245772,-500.0,0.00032876,2]
[310137179,1704382245781,-1587.4,0.00032876,2]
[310137180,1704382245791,-956.51,0.00032876,2]
[310137181,1704382245800,-500.0,0.00032876,2]
[310137182,1704382245810,-500.0,0.00032876,2]
[310137183,1704382245819,-500.0,0.00032876,2]
[310137184,1704382245829,-626.41,0.00032876,2]
[310137185,1704382246024,-791.2,0.00032876,2]
[310137186,1704382246034,-500.0,0.00032876,2]
[310137187,1704382246043,-500.0,0.00032876,2]
[310137188,1704382246052,-532.07,0.00032876,2]
[310137190,1704382246062,-1976.95,0.00032876,2]
[310137192,1704382246071,-586.38090869,0.00032876,2]
[310137194,1704382246080,-514.17,0.00032876,2]
[310137195,1704382246089,-500.0,0.00032876,2]
[310137196,1704382246099,-500.0,0.00032876,2]
[310137197,1704382246108,-668.79,0.00032876,2]
[310137198,1704382246118,-500.0,0.00032876,2]
[310137199,1704382246127,-500.0,0.00032876,2]
[310137200,1704382246137,-1044.33,0.00032876,2]
[310137201,1704382246146,-633.34055003,0.00032876,2]
[310137202,1704382246157,-500.0,0.00032876,2]
[310137203,1704382246167,-500.0,0.00032876,2]
[310137204,1704382246177,-500.0,0.00032876,2]
[310137205,1704382246187,-1689.98,0.00032876,2]
[310137206,1704382246196,-500.0,0.00032876,2]
[310137207,1704382246206,-1159.3,0.00032876,2]
[310137208,1704382246215,-516.28838673,0.00032876,2]
[310137209,1704382246224,-500.0,0.00032876,2]
[310137210,1704382246234,-1455.69,0.00032876,2]
[310137211,1704382246243,-1409.52,0.00032876,2]
[310137212,1704382246253,-500.0,0.00032876,2]
[310137213,1704382246262,-1012.12,0.00032876,2]
[310137214,1704382246271,-1781.64,0.00032876,2]
[310137215,1704382246281,-500.0,0.00032876,2]
[310137216,1704382246294,-500.0,0.00032876,2]
[310137217,1704382246303,-566.85,0.00032876,2]
[310137218,1704382246313,-575.44803896,0.00032876,2]
[310137219,1704382246322,-1654.3,0.00032876,2]
[310137220,1704382246331,-500.0,0.00032876,2]
[310137221,1704382246342,-500.0,0.00032876,2]
[310137222,1704382246351,-712.84,0.00032876,2]
[310137223,1704382246360,-500.0,0.00032876,2]
[310137224,1704382246370,-976.86,0.00032876,2]
[310137225,1704382246380,-500.0,0.00032876,2]
[310137226,1704382246389,-500.0,0.00032876,2]
[310137227,1704382246399,-2479.73,0.00032876,2]
[310137228,1704382246411,-1315.87,0.00032876,2]
[310137229,1704382246424,-578.9,0.00032876,2]
[310137230,1704382246433,-500.0,0.00032876,2]
[310137231,1704382246441,-500.0,0.00032876,2]
[310137232,1704382246450,-195.18665188,0.00032876,2]
[310137233,1704382246459,-1665.77,0.00032876,2]
[310137234,1704382246468,-682.59,0.00032876,2]
[310137235,1704382246477,-533.46,0.00032876,2]
[310137236,1704382246486,-561.24,0.00032876,2]
[310137237,1704382246495,-582.57,0.00032876,2]
[310137238,1704382246505,-500.0,0.00032876,2]
[310137239,1704382246514,-500.0,0.00032876,2]
[310137240,1704382246523,-2243.16,0.00032876,2]
[310137241,1704382246533,-1267.63,0.00032876,2]
[310137242,1704382246542,-500.0,0.00032876,2]
[310137243,1704382246552,-500.0,0.00032876,2]
[310137244,1704382246562,-500.0,0.00032876,2]
[310137245,1704382246571,-500.0,0.00032876,2]
[310137246,1704382246581,-500.0,0.00032876,2]
[310137247,1704382246590,-500.0,0.00032876,2]
[310137248,1704382246601,-500.0,0.00032876,2]
[310137249,1704382246611,-1087.48,0.00032876,2]
[310137250,1704382246620,-631.64,0.00032876,2]
[310137251,1704382246631,-500.0,0.00032876,2]
[310137252,1704382246641,-2188.13,0.00032876,2]
[310137253,1704382246651,-500.0,0.00032876,2]
[310137254,1704382246661,-883.44,0.00032876,2]
[310137255,1704382246670,-500.0,0.00032876,2]
[310137256,1704382246679,-500.0,0.00032876,2]
[310137257,1704382246688,-1775.65,0.00032876,2]
[310137258,1704382246698,-500.0,0.00032876,2]
[310137259,1704382246707,-500.0,0.00032876,2]
[310137260,1704382246717,-500.0,0.00032876,2]
[310137261,1704382246726,-819.64,0.00032876,2]
[310137262,1704382246736,-500.0,0.00032876,2]
[310137263,1704382246746,-592.03,0.00032876,2]
[310137264,1704382246756,-3373.35,0.00032876,2]
[310137265,1704382246766,-500.0,0.00032876,2]
[310137266,1704382246775,-1298.54,0.00032876,2]
[310137267,1704382246785,-1586.34,0.00032876,2]
[310137268,1704382246795,-780.13,0.00032876,2]
[310137269,1704382246805,-500.0,0.00032876,2]
[310137270,1704382246815,-518.46,0.00032876,2]
[310137271,1704382246826,-707.26,0.00032876,2]
[310137272,1704382246837,-500.0,0.00032876,2]
[310137273,1704382246846,-526.5,0.00032876,2]
[310137274,1704382246856,-500.0,0.00032876,2]
[310137275,1704382246866,-1324.36,0.00032876,2]
[310137276,1704382246875,-500.0,0.00032876,2]
[310137277,1704382246885,-646.65,0.00032876,2]
[310137278,1704382246894,-500.0,0.00032876,2]
[310137279,1704382246907,-2219.77,0.00032876,2]
[310137280,1704382246917,-500.0,0.00032876,2]
[310137281,1704382246928,-500.0,0.00032876,2]
[310137282,1704382246938,-989.6,0.00032876,2]
[310137283,1704382246948,-1339.39,0.00032876,2]
[310137284,1704382246958,-500.0,0.00032876,2]
[310137285,1704382246967,-1000.0,0.00032876,2]
[310137286,1704382246976,-653.7,0.00032876,2]
[310137287,1704382246986,-1000.0,0.00032876,2]
[310137288,1704382246995,-1000.0,0.00032876,2]
[310137289,1704382247004,-500.0,0.00032876,2]
[310137290,1704382247013,-1000.0,0.00032876,2]
[310137291,1704382247023,-1000.0,0.00032876,2]
[310137292,1704382247033,-1000.0,0.00032876,2]
[310137293,1704382247043,-1000.0,0.00032876,2]
[310137294,1704382247053,-519.6,0.00032876,2]
[310137295,1704382247063,-450.0,0.00032876,2]
[310137296,1704382247073,-1065.67,0.00032876,2]
[310137297,1704382247082,-267.58160968,0.00032876,2]
[310137298,1704382247092,-500.0,0.00032876,2]
[310137299,1704382247102,-500.0,0.00032876,2]
[310137300,1704382247112,-500.0,0.00032876,2]
[310137301,1704382247121,-500.0,0.00032876,2]
[310137302,1704382247131,-2055.5,0.00032876,2]
[310137303,1704382247140,-500.0,0.00032876,2]
[310137304,1704382247151,-415.65234667,0.00032876,2]
[310137305,1704382247161,-500.0,0.00032876,2]
[310137306,1704382247170,-500.0,0.00032876,2]
[310137307,1704382247180,-422.73905462,0.00032876,2]
[310137308,1704382247189,-500.0,0.00032876,2]
[310137309,1704382247199,-500.0,0.00032876,2]
[310137310,1704382247209,-632.18,0.00032876,2]
[310137311,1704382247218,-555.27,0.00032876,2]
[310137312,1704382247228,-500.0,0.00032876,2]
[310137313,1704382247238,-500.0,0.00032876,2]
[310137314,1704382247248,-500.0,0.00032876,2]
[310137315,1704382247259,-500.0,0.00032876,2]
[310137316,1704382247269,-1338.92,0.00032876,2]
[310137317,1704382247283,-500.0,0.00032876,2]
[310137318,1704382247294,-500.0,0.00032876,2]
[310137319,1704382247305,-555.52,0.00032876,2]
[310137320,1704382247315,-500.0,0.00032876,2]
[310137321,1704382247325,-500.0,0.00032876,2]
[310137322,1704382247335,-500.0,0.00032876,2]
[310137323,1704382247345,-570.54,0.00032876,2]
[310137324,1704382247354,-3232.69,0.00032876,2]
[310137325,1704382247364,-2189.05,0.00032876,2]
[310137326,1704382247373,-759.52,0.00032876,2]
[310137327,1704382247382,-500.0,0.00032876,2]
[310137328,1704382247391,-500.0,0.00032876,2]
[310137329,1704382247403,-817.65,0.00032876,2]
[310137330,1704382247415,-500.0,0.00032876,2]
[310137331,1704382247426,-500.0,0.00032876,2]
[310137332,1704382247438,-1722.33,0.00032876,2]
[310137333,1704382247448,-2425.11,0.00032876,2]
[310137334,1704382247459,-828.07,0.00032876,2]
[310137335,1704382247470,-1223.54,0.00032876,2]
[310137336,1704382247482,-1456.98,0.00032876,2]
[310137337,1704382247493,-500.0,0.00032876,2]
[310137338,1704382247504,-500.0,0.00032876,2]
[310137339,1704382247515,-203.12212742,0.00032876,2]
[310137340,1704382247527,-500.0,0.00032876,2]
[310137341,1704382247538,-583.33,0.00032876,2]
[310137342,1704382247549,-1177.67,0.00032876,2]
[310137343,1704382247563,-500.0,0.00032876,2]
[310137344,1704382247575,-875.56,0.00032876,2]
[310137345,1704382247585,-500.0,0.00032876,2]
[310137346,1704382247596,-500.0,0.00032876,2]
[310137347,1704382247607,-500.0,0.00032876,2]
[310137348,1704382247618,-500.0,0.00032876,2]
[310137349,1704382247628,-500.0,0.00032876,2]
[310137350,1704382247639,-2227.49,0.00032876,2]
[310137351,1704382247650,-500.0,0.00032876,2]
[310137352,1704382247663,-500.0,0.00032876,2]
[310137353,1704382247673,-500.0,0.00032876,2]
[310137354,1704382247683,-1518.35,0.00032876,2]
[310137355,1704382247693,-500.0,0.00032876,2]
[310137356,1704382247704,-750.06,0.00032876,2]
[310137357,1704382247714,-500.0,0.00032876,2]
[310137358,1704382247723,-820.93,0.00032876,2]
[310137359,1704382247737,-500.0,0.00032876,2]
[310137360,1704382247747,-564.52891436,0.00032876,2]
[310137361,1704382247757,-500.0,0.00032876,2]
[310137362,1704382247767,-500.0,0.00032876,2]
[310137363,1704382247778,-500.0,0.00032876,2]
[310137364,1704382247788,-500.0,0.00032876,2]
[310137365,1704382247801,-500.0,0.00032876,2]
[310137366,1704382247811,-500.0,0.00032876,2]
[310137367,1704382247822,-500.0,0.00032876,2]
[310137368,1704382247832,-563.99,0.00032876,2]
[310137369,1704382247842,-553.89,0.00032876,2]
[310137370,1704382247853,-1394.22,0.00032876,2]
[310137371,1704382247864,-500.0,0.00032876,2]
[310137372,1704382247876,-500.0,0.00032876,2]
[310137373,1704382247886,-1421.63,0.00032876,2]
[310137374,1704382247896,-500.0,0.00032876,2]
[310137375,1704382247909,-500.0,0.00032876,2]
[310137376,1704382247919,-2931.05,0.00032876,2]
[310137377,1704382247929,-500.0,0.00032876,2]
[310137378,1704382247939,-500.0,0.00032876,2]
[310137379,1704382247948,-1128.24,0.00032876,2]
[310137380,1704382247957,-534.18,0.00032876,2]
[310137381,1704382247968,-500.0,0.00032876,2]
[310137382,1704382247978,-500.0,0.00032876,2]
[310137383,1704382247988,-500.0,0.00032876,2]
[310137384,1704382247998,-500.0,0.00032876,2]
[310137385,1704382248009,-500.0,0.00032876,2]
[310137386,1704382248019,-500.0,0.00032876,2]
[310137387,1704382248029,-500.0,0.00032876,2]
[310137388,1704382248039,-500.0,0.00032876,2]
[310137389,1704382248049,-990.25,0.00032876,2]
[310137390,1704382248059,-500.0,0.00032876,2]
[310137391,1704382248068,-500.0,0.00032876,2]
[310137392,1704382248078,-150.0,0.00032876,2]
[310137393,1704382248088,-1440.48,0.00032876,2]
[310137394,1704382248097,-618.51,0.00032876,2]
[310137395,1704382248107,-500.0,0.00032876,2]
[310137396,1704382248117,-500.0,0.00032876,2]
[310137397,1704382248127,-500.0,0.00032876,2]
[310137398,1704382248137,-500.0,0.00032876,2]
[310137399,1704382248147,-500.0,0.00032876,2]
[310137400,1704382248161,-1720.17,0.00032876,2]
[310137401,1704382248171,-500.0,0.00032876,2]
[310137402,1704382248181,-1631.87,0.00032876,2]
[310137403,1704382248191,-500.0,0.00032876,2]
[310137404,1704382248201,-500.0,0.00032876,2]
[310137405,1704382248210,-500.0,0.00032876,2]
[310137406,1704382248220,-500.0,0.00032876,2]
[310137407,1704382248230,-500.0,0.00032876,2]
[310137408,1704382248240,-500.0,0.00032876,2]
[310137409,1704382248250,-1063.03,0.00032876,2]
[310137410,1704382248259,-500.0,0.00032876,2]